fUST/lending_fUST_20251120
["ID","MTS","AMOUNT","RATE_DAILY","PERIOD"]
[394492895,1763629841240,-929.73692758,7.478e-05,2]
[394492896,1763629841250,-929.73692758,7.478e-05,2]
[394492897,1763629841259,-929.73692758,7.478e-05,2]
[394492898,1763629841268,-175.08741135,7.478e-05,2]
[394492932,1763629845995,-754.64951623,7.478e-05,2]
[394492933,1763629846004,-99.14982884,7.478e-05,2]
[394492936,1763629872917,1873.20492846,0.00013699,7]
[394492946,1763629927838,175.12083,0.00014,3]
[394492948,1763630033069,1681.35032657,0.00013699,7]
[394492987,1763630394712,2017.05192309,7.249e-05,2]
[394492988,1763630417120,2017.05192309,7.249e-05,2]
[394492989,1763630439477,1950.84904135,7.249e-05,2]
[394492991,1763630450304,193.776108,0.00030137,120]
[394492994,1763630526322,166.364789,0.00014,3]
[394492995,1763630570776,-183.72,7.348e-05,2]
[394493043,1763630851517,183.716,7.201e-05,2]
[394493049,1763630917569,20141.0,0.00039838,30]
[394493050,1763630951615,494.98469108,0.00013699,7]
[394493094,1763631031930,-180.74828722,7.271e-05,2]
[394493095,1763631031939,-204.51399539,7.298e-05,2]
[394493096,1763631031948,-83.24100548,7.322e-05,2]
[394493204,1763631037777,-216.75899452,7.322e-05,2]
[394493206,1763631037787,-300.0,7.322e-05,2]
[394493208,1763631037796,-500.0,7.323e-05,2]
[394493210,1763631037806,-500.0,7.323e-05,2]
[394493212,1763631037815,-500.0,7.323e-05,2]
[394493214,1763631037824,-500.0,7.323e-05,2]
[394493216,1763631037833,-500.0,7.323e-05,2]
[394493218,1763631037841,-517.05192309,7.323e-05,2]
[394493220,1763631037850,-500.0,7.323e-05,2]
[394493222,1763631037859,-325.19555492,7.323e-05,2]
[394493224,1763631037870,-174.80444508,7.323e-05,2]
[394493226,1763631037879,-500.0,7.323e-05,2]
[394493228,1763631037888,-500.0,7.323e-05,2]
[394493230,1763631037897,-500.0,7.345e-05,2]
[394493231,1763631037906,-1349.97899673,7.35e-05,2]
[394493234,1763631037917,-128363.97569732,7.35e-05,2]
[394493433,1763631040158,-7380.79824776,7.35e-05,2]
[394493609,1763631044324,-11735.6585147,7.35e-05,2]
[394493610,1763631044336,-1155.4,7.35e-05,2]
[394493611,1763631044380,-11172.49348432,7.35e-05,2]
[394493627,1763631046158,-9000.0,7.35e-05,2]
[394493628,1763631046170,-2318.35258898,7.35e-05,2]
[394493631,1763631089879,3687.71393726,0.00013699,7]
[394493632,1763631127447,162.633252,0.00014,3]
[394493635,1763631171448,-523.81132201,7.271e-05,2]
[394493661,1763631265635,1592.02609408,0.00013699,7]
[394493684,1763631310717,173.0,0.000141,3]
[394493685,1763631312010,8952.38735598,7.244e-05,2]
[394493686,1763631312035,10000.01,7.244e-05,2]
[394493687,1763631312058,10000.01,7.244e-05,2]
[394493688,1763631312081,10000.01,7.244e-05,2]
[394493689,1763631312110,38831.33111247,7.244e-05,2]
[394493715,1763631527880,-664.09083633,7.085e-05,2]
[394493719,1763631545080,1260.1651513,7.085e-05,2]
[394493723,1763631567498,1260.1651513,7.085e-05,2]
[394493724,1763631575337,788.29196938,7.085e-05,2]
[394493725,1763631577619,5363.20605536,6.208e-05,2]
[394493726,1763631577650,3236.83700964,6.208e-05,2]
[394493727,1763631586993,10000.01,6.257e-05,2]
[394493728,1763631606428,1260.1651513,6.944e-05,2]
[394493729,1763631628073,678.5710054,6.944e-05,2]
[394493770,1763631658463,174.38378006,6.908e-05,2]
[394493779,1763631660733,399.67801594,6.908e-05,2]
[394493780,1763631663545,310.82034838,6.913e-05,2]
[394493795,1763631670359,664.09083633,6.799e-05,2]
[394493796,1763631672955,1195.3635054,6.827e-05,2]
[394493797,1763631675169,2125.09067626,6.856e-05,2]
[394493798,1763631771351,154.501589,0.00014,3]
[394493800,1763631785311,1260.1651513,6.944e-05,2]
[394493801,1763631793659,1260.1651513,6.944e-05,2]
[394493802,1763631802607,216.1400778,6.185e-05,2]
[394493803,1763631808877,200.42371548,6.979e-05,2]
[394493805,1763631816713,200.42371548,6.979e-05,2]
[394493806,1763631832455,200.42371548,6.979e-05,2]
[394493807,1763631840742,200.42371548,6.979e-05,2]
[394493808,1763631845645,596.07431497,6.799e-05,2]
[394493809,1763631848460,1072.93376695,6.827e-05,2]
[394493810,1763631851307,1907.43780792,6.856e-05,2]
[394493811,1763631856480,409.84473,6.96e-05,2]
[394493812,1763631864211,409.84473,6.96e-05,2]
[394493813,1763631865558,410.50077507,0.00039822,30]
[394493814,1763631882566,800.0,0.00032877,120]
[394493818,1763631910157,-166.68306268,7.03e-05,2]
[394493822,1763631912458,-183.87134626,7.03e-05,2]
[394493823,1763631915149,-59.29032106,7.03e-05,2]
[394493824,1763631915172,-103.94318501,7.05e-05,2]
[394493827,1763631919728,-96.48053047,7.05e-05,2]
[394493828,1763631919752,-162.2811671,7.154e-05,2]
[394493829,1763631921307,-137.7188329,7.154e-05,2]
[394493830,1763631921329,-103.51946953,7.154e-05,2]
[394493831,1763631924111,-196.48053047,7.154e-05,2]
[394493832,1763631924134,-4.4768813,7.154e-05,2]
[394493833,1763631928083,-220.75845458,7.154e-05,2]
[394493836,1763631930245,-74.76466412,7.154e-05,2]
[394493837,1763631930265,-196.38694873,7.154e-05,2]
[394493839,1763631931845,-152.15644305,7.154e-05,2]
[394493840,1763631935278,-261.94749561,7.154e-05,2]
[394493841,1763631936877,-30.50911261,7.154e-05,2]
[394493842,1763631936898,-157.97988447,7.154e-05,2]
[394493843,1763631938434,-187.477509,7.154e-05,2]
[394493844,1763631942197,-337.99093701,7.154e-05,2]
[394493845,1763631943703,-214.41686065,7.154e-05,2]
[394493846,1763631945360,-200.95741177,7.154e-05,2]
[394493847,1763631947531,-158.62912185,7.154e-05,2]
[394493848,1763631949357,-285.58313935,7.154e-05,2]
[394493852,1763631952240,-232.81279311,7.154e-05,2]
[394493853,1763631954422,-353.93623165,7.154e-05,2]
[394493854,1763631958871,-281.68020426,7.154e-05,2]
[394493855,1763631960364,-163.53164869,7.154e-05,2]
[394493856,1763631962522,-320.60425658,7.154e-05,2]
[394493857,1763631965542,-226.99780248,7.153e-05,2]
[394493860,1763631969659,-180.65593267,7.03e-05,2]
[394493861,1763631969687,-73.00219752,7.153e-05,2]
[394493862,1763631969711,-67.16893924,7.154e-05,2]
[394493863,1763631971531,-163.46915366,7.154e-05,2]
[394493864,1763631973596,-167.157415,7.154e-05,2]
[394493865,1763631977072,-419.63562962,7.154e-05,2]
[394493866,1763631980957,-307.6474288,7.154e-05,2]
[394493867,1763631982744,-180.74654373,7.154e-05,2]
[394493868,1763631986794,-227.90980618,7.154e-05,2]
[394493869,1763631989533,-346.2347783,7.154e-05,2]
[394493870,1763631993973,-180.24560737,7.153e-05,2]
[394493871,1763631995030,-202.6831708,7.153e-05,2]
[394493872,1763631997575,-206.29153387,7.153e-05,2]
[394493873,1763631997598,-133.20300759,7.153e-05,2]
[394493874,1763632000375,-173.399288,7.153e-05,2]
[394493875,1763632003611,-193.39770441,7.153e-05,2]
[394493876,1763632003633,-1.81077978,7.153e-05,2]
[394493877,1763632005792,-400.86001446,7.153e-05,2]
[394493878,1763632008285,-97.32920576,7.153e-05,2]
[394493879,1763632008325,-76.4417122,7.153e-05,2]
[394493880,1763632010778,-423.5582878,7.153e-05,2]
[394493881,1763632010804,-40.75278185,7.153e-05,2]
[394493882,1763632019467,-326.22908204,7.153e-05,2]
[394493883,1763632021061,-133.01813611,7.153e-05,2]
[394493884,1763632021086,-128.05342477,7.153e-05,2]
[394493885,1763632023803,-187.04164926,7.152e-05,2]
[394493886,1763632025595,-112.95835074,7.152e-05,2]
[394493887,1763632025617,-104.50925983,7.153e-05,2]
[394493888,1763632028297,-267.4373154,7.153e-05,2]
[394493889,1763632028320,-14.82387379,7.153e-05,2]
[394493890,1763632033271,-151.41671009,7.153e-05,2]
[394493891,1763632035384,-333.75941612,7.153e-05,2]
[394493892,1763632035407,-62.4924619,7.153e-05,2]
[394493893,1763632039638,-213.45964971,7.153e-05,2]
[394493894,1763632041152,-224.04788839,7.153e-05,2]
[394493895,1763632041174,-51.02047467,7.153e-05,2]
[394493896,1763632044338,-285.21841828,7.153e-05,2]
[394493897,1763632044549,247.92263535,0.00039822,120]
[394493898,1763632046401,-163.76110705,7.153e-05,2]
[394493899,1763632046421,-43.27572846,7.153e-05,2]
[394493900,1763632049033,-156.58474661,7.153e-05,2]
[394493901,1763632049055,-111.20746928,7.153e-05,2]
[394493902,1763632051198,-198.27832445,7.153e-05,2]
[394493903,1763632052648,-160.3145574,7.153e-05,2]
[394493904,1763632055792,-30.19964887,7.153e-05,2]
[394493905,1763632055814,-139.28715885,7.153e-05,2]
[394493906,1763632057324,-197.04983745,7.153e-05,2]
[394493907,1763632060025,-163.6630037,7.153e-05,2]
[394493908,1763632060053,-128.99364819,7.153e-05,2]
[394493909,1763632062814,-287.96468807,7.153e-05,2]
[394493910,1763632064386,-83.04166374,7.153e-05,2]
[394493911,1763632064416,-128.99364819,7.153e-05,2]
[394493912,1763632067052,815.62,0.00039822,30]
[394493913,1763632067299,815.62,0.00039822,30]
[394493914,1763632067548,815.62,0.00039822,30]
[394493915,1763632067680,-68.48238267,7.153e-05,2]
[394493916,1763632067712,-107.07382631,7.153e-05,2]
[394493917,1763632067817,815.62,0.00039822,30]
[394493918,1763632068482,815.62,0.00039822,30]
[394493919,1763632069464,815.62,0.00039822,30]
[394493920,1763632069698,815.62,0.00039822,30]
[394493921,1763632069941,815.62,0.00039822,30]
[394493922,1763632070095,-222.09989818,7.153e-05,2]
[394493923,1763632070175,815.62,0.00039822,30]
[394493924,1763632070413,815.62,0.00039822,30]
[394493925,1763632070727,815.62,0.00039822,120]
[394493926,1763632071038,815.62,0.00039822,120]
[394493927,1763632071233,815.62,0.00039822,120]
[394493928,1763632071583,815.62,0.00039822,120]
[394493929,1763632071743,815.62,0.00039822,120]
[394493930,1763632071966,815.62,0.00039822,120]
[394493931,1763632072226,815.62,0.00039822,120]
[394493932,1763632072492,815.62,0.00039822,120]
[394493933,1763632072732,815.62,0.00039822,120]
[394493934,1763632072970,815.62,0.00039822,120]
[394493935,1763632073209,815.62,0.00039822,120]
[394493936,1763632073391,-200.0,7.081e-05,2]
[394493937,1763632073455,815.62,0.00039822,120]
[394493938,1763632073716,815.62,0.00039822,120]
[394493939,1763632073949,815.72683407,0.00039822,120]
[394493940,1763632077399,-220.82177319,7.081e-05,2]
[394493941,1763632081796,-189.1572775,7.01e-05,2]
[394493942,1763632084065,-186.60622081,7.01e-05,2]
[394493943,1763632087380,-203.10472269,7.01e-05,2]
[394493944,1763632088985,-302.55390884,7.01e-05,2]
[394493945,1763632092119,-300.0,7.01e-05,2]
[394493946,1763632093882,-298.63682187,7.01e-05,2]
[394493947,1763632134708,-174.69062519,7.01e-05,2]
[394493948,1763632138084,-289.07629788,7.01e-05,2]
[394493949,1763632139708,-165.27524476,7.01e-05,2]
[394493950,1763632142278,-384.26687239,7.01e-05,2]
[394493951,1763632145702,-151.96620454,7.01e-05,2]
[394493952,1763632148498,-208.96615428,7.01e-05,2]
[394493953,1763632152885,-297.6757404,7.01e-05,2]
[394493954,1763632154549,-456.74508197,7.01e-05,2]
[394493955,1763632159276,-277.72824237,7.01e-05,2]
[394493956,1763632161290,-225.602315,7.01e-05,2]
[394493957,1763632166427,-459.33004626,7.01e-05,2]
[394493958,1763632169002,-197.23116137,7.01e-05,2]
[394493959,1763632170732,318.80269168,6.94e-05,2]
[394493960,1763632172071,-153.69344454,7.01e-05,2]
[394493962,1763632195807,-301.34088911,7.01e-05,2]
[394493963,1763632198429,-248.30159134,7.01e-05,2]
[394493964,1763632200907,-219.57864953,7.01e-05,2]
[394493966,1763632202526,-219.57864953,7.01e-05,2]
[394493990,1763632233346,-476.05452656,7.01e-05,2]
[394494010,1763632239586,-257.69026264,7.01e-05,2]
[394494120,1763632241285,-1459.5512716,7.01e-05,2]
[394494122,1763632241294,-300.0,7.044e-05,2]
[394494124,1763632241303,-500.0,7.044e-05,2]
[394494126,1763632241312,-500.0,7.044e-05,2]
[394494128,1763632241321,-500.0,7.044e-05,2]
[394494130,1763632241331,-500.0,7.044e-05,2]
[394494132,1763632241341,-500.0,7.044e-05,2]
[394494134,1763632241350,-500.0,7.044e-05,2]
[394494136,1763632241358,-500.0,7.044e-05,2]
[394494138,1763632241367,-500.0,7.044e-05,2]
[394494140,1763632241376,-500.0,7.044e-05,2]
[394494141,1763632241385,-500.0,7.044e-05,2]
[394494143,1763632241394,-500.0,7.044e-05,2]
[394494145,1763632241402,-500.0,7.044e-05,2]
[394494147,1763632241412,-500.0,7.044e-05,2]
[394494149,1763632241422,-500.0,7.044e-05,2]
[394494151,1763632241432,-500.0,7.044e-05,2]
[394494153,1763632241441,-500.0,7.044e-05,2]
[394494155,1763632241450,-500.0,7.044e-05,2]
[394494157,1763632241460,-500.0,7.044e-05,2]
[394494159,1763632241469,-500.0,7.044e-05,2]
[394494161,1763632241479,-500.0,7.044e-05,2]
[394494163,1763632241488,-213.09292182,7.044e-05,2]
[394494164,1763632241497,-500.0,7.044e-05,2]
[394494166,1763632241508,-500.0,7.044e-05,2]
[394494168,1763632241517,-500.0,7.044e-05,2]
[394494170,1763632241527,-500.0,7.044e-05,2]
[394494172,1763632241536,-500.0,7.044e-05,2]
[394494174,1763632241546,-500.0,7.044e-05,2]
[394494176,1763632241555,-500.0,7.044e-05,2]
[394494178,1763632241564,-500.0,7.044e-05,2]
[394494180,1763632241573,-500.0,7.044e-05,2]
[394494182,1763632241582,-500.0,7.044e-05,2]
[394494184,1763632241591,-500.0,7.044e-05,2]
[394494186,1763632241599,-500.0,7.044e-05,2]
[394494188,1763632241610,-500.0,7.044e-05,2]
[394494190,1763632241619,-500.0,7.044e-05,2]
[394494191,1763632241628,-500.0,7.044e-05,2]
[394494193,1763632241637,-500.0,7.044e-05,2]
[394494195,1763632241647,-500.0,7.044e-05,2]
[394494197,1763632241657,-500.0,7.044e-05,2]
[394494199,1763632241666,-500.0,7.044e-05,2]
[394494201,1763632241675,-500.0,7.044e-05,2]
[394494203,1763632241684,-500.0,7.044e-05,2]
[394494205,1763632241693,-500.0,7.044e-05,2]
[394494207,1763632241702,-500.0,7.044e-05,2]
[394494209,1763632241711,-500.0,7.044e-05,2]
[394494211,1763632241720,-500.0,7.044e-05,2]
[394494213,1763632241729,-500.0,7.044e-05,2]
[394494215,1763632241738,-500.0,7.044e-05,2]
[394494217,1763632241747,-500.0,7.044e-05,2]
[394494218,1763632241760,-500.0,7.044e-05,2]
[394494220,1763632241771,-500.0,7.044e-05,2]
[394494222,1763632241780,-500.0,7.044e-05,2]
[394494224,1763632241789,-452.34315012,7.044e-05,2]
[394494226,1763632241798,-500.0,7.044e-05,2]
[394494228,1763632241809,-500.0,7.044e-05,2]
[394494230,1763632241818,-500.0,7.044e-05,2]
[394494232,1763632241827,-500.0,7.044e-05,2]
[394494234,1763632241836,-500.0,7.044e-05,2]
[394494236,1763632241844,-500.0,7.044e-05,2]
[394494238,1763632241854,-500.0,7.044e-05,2]
[394494240,1763632241863,-500.0,7.044e-05,2]
[394494242,1763632241872,-500.0,7.044e-05,2]
[394494244,1763632241881,-200.43438941,7.045e-05,2]
[394494245,1763632241890,-8265.1001067,7.045e-05,2]
[394494289,1763632244053,-339.69106062,7.045e-05,2]
[394494290,1763632244598,-4457.42683899,7.045e-05,2]
[394494291,1763632245619,-160.30893938,7.045e-05,2]
[394494292,1763632246382,-5135.42423441,7.045e-05,2]
[394494293,1763632246392,-500.0,7.08e-05,2]
[394494294,1763632246401,-166.93,7.08e-05,2]
[394494295,1763632246412,-12241.1721296,7.081e-05,2]
[394494296,1763632246421,-84.53816955,7.14e-05,2]
[394494297,1763632276306,-321.92626902,7.14e-05,2]
[394494298,1763632276879,1290.49046276,6.998e-05,2]
[394494299,1763632279095,-381.89871258,7.069e-05,2]
[394494300,1763632281852,-175.94023157,7.069e-05,2]
[394494301,1763632283987,-176.59541754,7.069e-05,2]
[394494302,1763632288495,-348.09440278,7.069e-05,2]
[394494305,1763632292486,-220.28031838,7.069e-05,2]
[394494306,1763632295206,-428.08401246,7.069e-05,2]
[394494307,1763632300176,-169.68961706,7.069e-05,2]
[394494308,1763632301094,569.10918713,6.998e-05,2]
[394494397,1763632309978,169.68961702,6.998e-05,2]
[394495695,1763632324658,153.09956474,6.998e-05,2]
[394495772,1763632325412,-183.41362555,7.044e-05,2]
[394495918,1763632326959,-222.45726927,7.044e-05,2]
[394496062,1763632328548,-227.97848245,7.044e-05,2]
[394496253,1763632331443,258.675547,0.00014,3]
[394496255,1763632332398,-236.9445648,7.044e-05,2]
[394496272,1763632335123,-256.90292386,7.044e-05,2]
[394496273,1763632336653,1303.0,0.000141,3]
[394496275,1763632338934,-196.68782199,7.044e-05,2]
[394496276,1763632338961,-103.31217801,7.044e-05,2]
[394496295,1763632342067,-158.90364742,7.044e-05,2]
[394496307,1763632344143,-334.14140502,7.044e-05,2]
[394496311,1763632346754,-362.18538075,7.044e-05,2]
[394496324,1763632351863,-247.6827799,7.044e-05,2]
[394496331,1763632353346,-118.15929682,7.044e-05,2]
[394496333,1763632353372,-52.19102561,7.044e-05,2]
[394496342,1763632354937,-277.45847673,7.044e-05,2]
[394496344,1763632356891,-226.29745523,7.044e-05,2]
[394496346,1763632361337,-183.8714694,7.044e-05,2]
[394496354,1763632362838,-269.47309527,7.044e-05,2]
[394496356,1763632367724,-193.73907496,7.044e-05,2]
[394496383,1763632375702,193.73907496,6.973e-05,2]
[394496384,1763632376561,-280.0576849,7.043e-05,2]
[394496388,1763632383465,-870.9423151,7.043e-05,2]
[394496389,1763632383505,-121.35409072,7.044e-05,2]
[394496390,1763632383533,-500.0,7.044e-05,2]
[394496391,1763632383565,-1324.38468792,7.044e-05,2]
[394496392,1763632383593,-500.0,7.044e-05,2]
[394496393,1763632383622,-500.0,7.044e-05,2]
[394496394,1763632383653,-1042.2631246,7.044e-05,2]
[394496395,1763632383965,-88.38248836,7.044e-05,2]
[394496396,1763632384018,-193.73907496,7.044e-05,2]
[394496397,1763632384057,-500.0,7.044e-05,2]
[394496398,1763632384092,-1324.38468792,7.044e-05,2]
[394496399,1763632384125,-500.0,7.044e-05,2]
[394496400,1763632384160,-1324.38468792,7.044e-05,2]
[394496401,1763632384190,-500.0,7.044e-05,2]
[394496402,1763632384219,-500.0,7.044e-05,2]
[394496403,1763632384310,-356.32697641,7.044e-05,2]
[394496404,1763632384359,-968.05771151,7.044e-05,2]
[394496405,1763632384390,-500.0,7.044e-05,2]
[394496406,1763632384419,-500.0,7.044e-05,2]
[394496407,1763632384448,-357.4680448,7.044e-05,2]
[394496408,1763632384476,-500.0,7.044e-05,2]
[394496409,1763632384506,-500.0,7.044e-05,2]
[394496410,1763632384537,-500.0,7.044e-05,2]
[394496411,1763632384566,-500.0,7.044e-05,2]
[394496412,1763632384597,-500.0,7.044e-05,2]
[394496413,1763632384720,-500.0,7.044e-05,2]
[394496414,1763632384751,-500.0,7.044e-05,2]
[394496415,1763632384780,-500.0,7.044e-05,2]
[394496416,1763632384811,-500.0,7.044e-05,2]
[394496417,1763632384841,-500.0,7.044e-05,2]
[394496418,1763632384871,-500.0,7.044e-05,2]
[394496419,1763632384902,-500.0,7.044e-05,2]
[394496420,1763632384932,-500.0,7.044e-05,2]
[394496421,1763632384965,-675.62531208,7.044e-05,2]
[394496422,1763632385217,-648.75937584,7.044e-05,2]
[394496423,1763632385247,-500.0,7.044e-05,2]
[394496424,1763632385275,-500.0,7.044e-05,2]
[394496425,1763632385308,-1324.38468792,7.044e-05,2]
[394496426,1763632385337,-500.0,7.044e-05,2]
[394496427,1763632385372,-1324.38468792,7.044e-05,2]
[394496428,1763632385462,-500.0,7.044e-05,2]
[394496429,1763632385494,-1324.38468792,7.044e-05,2]
[394496430,1763632385523,-500.0,7.044e-05,2]
[394496431,1763632385563,-1324.38468792,7.044e-05,2]
[394496432,1763632385592,-500.0,7.044e-05,2]
[394496433,1763632385625,-378.0865604,7.044e-05,2]
[394496434,1763632385715,-946.29812752,7.044e-05,2]
[394496435,1763632385747,-500.0,7.044e-05,2]
[394496436,1763632385782,-1324.38468792,7.044e-05,2]
[394496437,1763632385817,-500.0,7.044e-05,2]
[394496439,1763632385851,-1324.38468792,7.044e-05,2]
[394496440,1763632385886,-309.87499328,7.044e-05,2]
[394496441,1763632385994,-190.12500672,7.044e-05,2]
[394496442,1763632386150,-1324.38468792,7.044e-05,2]
[394496444,1763632386179,-500.0,7.044e-05,2]
[394496445,1763632386212,-500.0,7.044e-05,2]
[394496447,1763632386245,-1324.38468792,7.044e-05,2]
[394496448,1763632386275,-500.0,7.044e-05,2]
[394496449,1763632386305,-500.0,7.044e-05,2]
[394496451,1763632386351,-1324.38468792,7.044e-05,2]
[394496452,1763632386382,-500.0,7.044e-05,2]
[394496453,1763632386414,-1324.38468792,7.044e-05,2]
[394496454,1763632386442,-500.0,7.044e-05,2]
[394496455,1763632386472,-1324.38468792,7.044e-05,2]
[394496456,1763632387157,-222.36247065,7.044e-05,2]
[394496457,1763632387265,-59.49074003,7.044e-05,2]
[394496458,1763632387282,-218.14678932,7.044e-05,2]
[394496459,1763632387292,-1106.2378986,7.044e-05,2]
[394496460,1763632387306,-218.14678932,7.044e-05,2]
[394496461,1763632387315,-281.85321068,7.044e-05,2]
[394496462,1763632387328,-1042.53147724,7.044e-05,2]
[394496463,1763632387340,-281.85321068,7.044e-05,2]
[394496464,1763632387354,-53.70187248,7.044e-05,2]
[394496465,1763632388556,-164.44491684,7.044e-05,2]
[394496466,1763632388579,-90.80102873,7.044e-05,2]
[394496467,1763632389245,-409.19897127,7.044e-05,2]
[394496468,1763632389279,-1324.38468792,7.044e-05,2]
[394496469,1763632389312,-1324.38468792,7.044e-05,2]
[394496470,1763632389345,-1324.38468792,7.044e-05,2]
[394496471,1763632389427,-1235.30392994,7.044e-05,2]
[394496472,1763632389556,-89.08075798,7.044e-05,2]
[394496473,1763632389588,-1324.38468792,7.044e-05,2]
[394496474,1763632389618,-1324.38468792,7.044e-05,2]
[394496475,1763632389650,-1324.38468792,7.044e-05,2]
[394496476,1763632389680,-551.1556686,7.044e-05,2]
[394496477,1763632389754,-773.22901932,7.044e-05,2]
[394496478,1763632389788,-1324.38468792,7.044e-05,2]
[394496479,1763632389820,-525.55682166,7.044e-05,2]
[394496480,1763632389851,-500.0,7.044e-05,2]
[394496481,1763632389882,-500.0,7.044e-05,2]
[394496482,1763632389911,-500.0,7.044e-05,2]
[394496483,1763632389942,-500.0,7.044e-05,2]
[394496484,1763632389971,-500.0,7.044e-05,2]
[394496485,1763632390095,-500.0,7.044e-05,2]
[394496486,1763632390201,-500.0,7.044e-05,2]
[394496487,1763632390229,-500.0,7.044e-05,2]
[394496488,1763632390259,-500.0,7.044e-05,2]
[394496489,1763632390287,-500.0,7.044e-05,2]
[394496490,1763632390316,-500.0,7.044e-05,2]
[394496491,1763632390344,-500.0,7.044e-05,2]
[394496492,1763632390374,-500.0,7.044e-05,2]
[394496493,1763632390403,-500.0,7.044e-05,2]
[394496494,1763632390430,-500.0,7.044e-05,2]
[394496495,1763632390467,-500.0,7.044e-05,2]
[394496496,1763632390549,-500.0,7.044e-05,2]
[394496497,1763632390580,-500.0,7.044e-05,2]
[394496498,1763632390607,-500.0,7.044e-05,2]
[394496499,1763632390634,-500.0,7.044e-05,2]
[394496500,1763632390662,-500.0,7.044e-05,2]
[394496501,1763632390690,-500.0,7.044e-05,2]
[394496502,1763632390717,-500.0,7.044e-05,2]
[394496503,1763632390746,-500.0,7.044e-05,2]
[394496504,1763632390777,-500.0,7.044e-05,2]
[394496505,1763632390810,-500.0,7.044e-05,2]
[394496506,1763632390885,-500.0,7.044e-05,2]
[394496507,1763632390915,-500.0,7.044e-05,2]
[394496508,1763632390944,-500.0,7.044e-05,2]
[394496509,1763632390973,-296.03700893,7.044e-05,2]
[394496510,1763632391001,-500.0,7.044e-05,2]
[394496511,1763632391030,-399.41957007,7.069e-05,2]
[394496512,1763632391058,-294.468,7.099e-05,2]
[394496513,1763632391716,-5.67898084,7.123e-05,2]
[394496514,1763632391729,-294.468,7.123e-05,2]
[394496515,1763632391750,-4020.160842,7.123e-05,2]
[394496517,1763632392497,-10000.01,7.123e-05,2]
[394496519,1763632392758,-10000.01,7.123e-05,2]
[394496520,1763632392838,-183.20725523,7.123e-05,2]
[394496521,1763632392911,-10000.01,7.123e-05,2]
[394496522,1763632393033,-10000.01,7.123e-05,2]
[394496523,1763632393291,-10000.01,7.123e-05,2]
[394496524,1763632396556,-159.37527628,7.123e-05,2]
[394496526,1763632398498,-917.99558508,7.052e-05,2]
[394496527,1763632398532,-8164.01882984,7.123e-05,2]
[394496528,1763632398628,-10000.01,7.123e-05,2]
[394496529,1763632398749,-10000.01,7.123e-05,2]
[394496530,1763632398861,-10000.01,7.123e-05,2]
[394496531,1763632398918,-324.11002486,7.123e-05,2]
[394496532,1763632400518,-184.14610089,7.123e-05,2]
[394496533,1763632401644,-10000.01,7.123e-05,2]
[394496534,1763632403979,-265.61784624,7.123e-05,2]
[394496535,1763632419683,-474.4191205,7.043e-05,2]
[394496536,1763632420808,184.14610089,6.973e-05,2]
[394496537,1763632421228,-25.5808795,7.043e-05,2]
[394496538,1763632421253,-199.77086931,7.043e-05,2]
[394496539,1763632422818,-152.46570568,7.043e-05,2]
[394496540,1763632424947,-205.29183447,7.043e-05,2]
[394496541,1763632427713,-303.52568229,7.043e-05,2]
[394496542,1763632429756,-201.05386391,7.043e-05,2]
[394496543,1763632431901,-244.71427823,7.043e-05,2]
[394496544,1763632434039,-25.65432155,7.043e-05,2]
[394496545,1763632434080,-146.52723247,7.043e-05,2]
[394496552,1763632437952,-28.32829215,7.043e-05,2]
[394496553,1763632437977,-423.09362348,7.043e-05,2]
[394496556,1763632438346,-909.38293196,7.043e-05,2]
[394496557,1763632438376,-500.0,7.043e-05,2]
[394496558,1763632438407,-1332.47655544,7.043e-05,2]
[394496559,1763632438439,-500.0,7.043e-05,2]
[394496560,1763632438468,-500.0,7.043e-05,2]
[394496561,1763632438498,-1183.81446976,7.043e-05,2]
[394496562,1763632438758,-148.66208568,7.043e-05,2]
[394496563,1763632438789,-1332.47655544,7.043e-05,2]
[394496564,1763632438823,-500.0,7.043e-05,2]
[394496565,1763632438854,-1332.47655544,7.043e-05,2]
[394496566,1763632438884,-500.0,7.043e-05,2]
[394496567,1763632438915,-1040.30305144,7.043e-05,2]
[394496568,1763632439002,-292.173504,7.043e-05,2]
[394496569,1763632440185,-500.0,7.043e-05,2]
[394496570,1763632440222,-1332.47655544,7.043e-05,2]
[394496571,1763632440252,-500.0,7.043e-05,2]
[394496572,1763632440282,-500.0,7.043e-05,2]
[394496573,1763632440317,-1332.47655544,7.043e-05,2]
[394496574,1763632440352,-337.6272228,7.043e-05,2]
[394496575,1763632440444,-994.84933264,7.043e-05,2]